fUSD/lending_fUSD_20251230
["ID","MTS","AMOUNT","RATE_DAILY","PERIOD"]
[400106633,1767122904553,-443.73440388,0.00041095,120]
[400106634,1767122904584,-288.98170681,0.00041095,120]
[400106635,1767122904613,-602.54866618,0.00041095,30]
[400106636,1767122904642,-303.42464329,0.00041095,120]
[400106637,1767122904671,-310.51793659,0.00041095,120]
[400106638,1767122904699,-403.21568975,0.00041095,120]
[400106639,1767122904726,-500.0,0.00041095,120]
[400106640,1767122904754,-541.73719325,0.00041095,120]
[400106641,1767122904782,-329.13771872,0.00041095,120]
[400106642,1767122904810,-308.66604123,0.00041095,120]
[400106643,1767122904837,-386.79402245,0.00041095,120]
[400106644,1767122904868,-295.46355463,0.00041095,120]
[400106645,1767122904898,-310.41685577,0.00041095,120]
[400106646,1767122904927,-403.09847935,0.00041095,120]
[400106647,1767122904956,-441.46007677,0.00041095,120]
[400106648,1767122904985,-355.97447376,0.00041095,120]
[400106649,1767122905012,-345.82677173,0.00041095,120]
[400106650,1767122905042,-500.0,0.00041095,120]
[400106651,1767122905071,-200.0,0.00041095,120]
[400106652,1767122905098,-413.74744716,0.00041095,120]
[400106653,1767122905126,-226.531339,0.00041095,120]
[400106654,1767122905154,-500.0,0.00041095,120]
[400106655,1767122905182,-438.83937461,0.00041095,120]
[400106656,1767122905209,-414.18297261,0.00041095,120]
[400106657,1767122905237,-500.0,0.00041095,120]
[400106658,1767122905266,-498.46827904,0.00041095,120]
[400106659,1767122905295,-386.17063356,0.00041095,120]
[400106660,1767122905325,-442.39965882,0.00041095,120]
[400106661,1767122905353,-500.0,0.00041095,60]
[400106662,1767122905381,-565.73408705,0.00041095,60]
[400106663,1767122905409,-407.28062511,0.00041095,120]
[400106664,1767122905436,-500.0,0.00041095,120]
[400106665,1767122905511,-500.0,0.00041095,120]
[400106666,1767122905543,-435.74019997,0.00041095,120]
[400106667,1767122905574,-411.69320249,0.00041095,120]
[400106668,1767122905605,-500.0,0.00041095,120]
[400106669,1767122905635,-500.0,0.00041095,120]
[400106670,1767122905664,-500.0,0.00041095,120]
[400106671,1767122905692,-500.0,0.00041095,120]
[400106672,1767122905719,-465.55956954,0.00041095,120]
[400106673,1767122905746,-500.0,0.00041095,120]
[400106674,1767122905773,-500.0,0.00041095,120]
[400106675,1767122905801,-500.0,0.00041095,120]
[400106676,1767122905828,-500.0,0.00041095,120]
[400106677,1767122905855,-500.0,0.00041095,120]
[400106678,1767122905886,-285.67974444,0.00041095,120]
[400106679,1767122905919,-500.0,0.00041095,120]
[400106680,1767122905947,-500.0,0.00041095,120]
[400106681,1767122905974,-500.0,0.00041095,120]
[400106682,1767122906002,-500.0,0.00041095,120]
[400106683,1767122906029,-500.0,0.00041095,120]
[400106684,1767122906057,-500.0,0.00041095,120]
[400106685,1767122906086,-500.0,0.00041095,120]
[400106686,1767122906115,-500.0,0.00041095,120]
[400106687,1767122906143,-500.0,0.00041095,120]
[400106688,1767122906171,-500.0,0.00041095,120]
[400106689,1767122906200,-500.0,0.00041095,120]
[400106690,1767122906228,-500.0,0.00041095,120]
[400106691,1767122906257,-500.0,0.00041095,120]
[400106692,1767122906286,-369.87984572,0.00041095,120]
[400106693,1767122906316,-500.0,0.00041095,120]
[400106694,1767122906350,-500.0,0.00041095,120]
[400106695,1767122906380,-500.0,0.00041095,120]
[400106696,1767122906410,-500.0,0.00041095,120]
[400106697,1767122906441,-500.0,0.00041095,120]
[400106698,1767122906470,-175.1931865,0.00041095,120]
[400106699,1767122906500,-2914.11,0.00041095,120]
[400106700,1767122906528,-2914.11,0.00041095,120]
[400106701,1767122906556,-2914.11,0.00041095,120]
[400106702,1767122906585,-2914.11,0.00041095,120]
[400106703,1767122906615,-2914.11,0.00041095,120]
[400106704,1767122906645,-2914.11,0.00041095,120]
[400106705,1767122906675,-2914.11,0.00041095,120]
[400106706,1767122906704,-2914.11,0.00041095,120]
[400106707,1767122906733,-2914.11,0.00041095,120]
[400106708,1767122906761,-2914.11,0.00041095,120]
[400106709,1767122906792,-2914.11,0.00041095,120]
[400106710,1767122906827,-2914.11,0.00041095,120]
[400106711,1767122906857,-2914.11,0.00041095,120]
[400106712,1767122906887,-2914.11,0.00041095,120]
[400106713,1767122906915,-2914.11,0.00041095,120]
[400106714,1767122906945,-2914.11,0.00041095,120]
[400106715,1767122906974,-2914.11,0.00041095,120]
[400106716,1767122907003,-2914.11,0.00041095,120]
[400106717,1767122907032,-2914.11,0.00041095,120]
[400106718,1767122907061,-2914.11,0.00041095,120]
[400106719,1767122907089,-2914.11,0.00041095,120]
[400106720,1767122907117,-2914.11,0.00041095,120]
[400106721,1767122907148,-2914.11,0.00041095,120]
[400106722,1767122907176,-2914.29592381,0.00041095,120]
[400106723,1767122907207,-500.0,0.00041095,120]
[400106724,1767122907236,-546.92563932,0.00041095,120]
[400106725,1767122907278,-500.0,0.00041095,120]
[400106726,1767122907311,-500.0,0.00041095,120]
[400106727,1767122907345,-500.0,0.00041095,120]
[400106728,1767122907374,-610.20604974,0.00041095,120]
[400106729,1767122907403,-537.43,0.00041095,120]
[400106730,1767122907432,-537.43,0.00041095,120]
[400106731,1767122907463,-537.43,0.00041095,120]
[400106732,1767122907491,-537.43,0.00041095,120]
[400106733,1767122907519,-537.43,0.00041095,120]
[400106734,1767122907547,-537.43,0.00041095,120]
[400106735,1767122907579,-537.43,0.00041095,120]
[400106736,1767122907607,-537.43,0.00041095,120]
[400106737,1767122907637,-537.43,0.00041095,120]
[400106738,1767122907664,-537.43,0.00041095,120]
[400106739,1767122907692,-537.43,0.00041095,120]
[400106740,1767122907720,-537.43,0.00041095,120]
[400106741,1767122907749,-537.43,0.00041095,120]
[400106742,1767122907778,-537.43,0.00041095,120]
[400106743,1767122907811,-537.43,0.00041095,120]
[400106744,1767122907839,-537.43,0.00041095,120]
[400106745,1767122907868,-537.43,0.00041095,120]
[400106746,1767122907899,-537.43,0.00041095,120]
[400106747,1767122907926,-537.43,0.00041095,120]
[400106748,1767122907953,-537.43,0.00041095,120]
[400106749,1767122907980,-537.43,0.00041095,120]
[400106750,1767122908008,-537.43,0.00041095,120]
[400106751,1767122908036,-537.43,0.00041095,120]
[400106752,1767122908065,-537.43825669,0.00041095,120]
[400106753,1767122908093,-155.95126033,0.00041095,120]
[400106754,1767122908121,-500.0,0.00041095,120]
[400106755,1767122908150,-500.0,0.00041095,120]
[400106756,1767122908176,-594.21214827,0.00041095,120]
[400106757,1767122908204,-200.0,0.00041095,120]
[400106758,1767122908232,-366.35224113,0.00041095,120]
[400106759,1767122908260,-341.28,0.00041095,120]
[400106760,1767122908288,-500.0,0.00041095,120]
[400106761,1767122908319,-500.0,0.00041095,120]
[400106762,1767122908475,-500.0,0.00041095,120]
[400106763,1767122908506,-500.0,0.00041095,120]
[400106764,1767122908538,-500.0,0.00041095,120]
[400106765,1767122908571,-500.0,0.00041095,120]
[400106766,1767122908601,-500.0,0.00041095,120]
[400106767,1767122908630,-500.0,0.00041095,120]
[400106768,1767122908659,-500.0,0.00041095,120]
[400106769,1767122908687,-500.0,0.00041095,120]
[400106770,1767122908715,-500.0,0.00041095,120]
[400106771,1767122908746,-500.0,0.00041095,120]
[400106772,1767122908776,-500.0,0.00041095,120]
[400106773,1767122908806,-500.0,0.00041095,120]
[400106774,1767122908836,-500.0,0.00041095,120]
[400106775,1767122908865,-500.0,0.00041095,120]
[400106776,1767122908896,-500.0,0.00041095,120]
[400106777,1767122908925,-357.28555046,0.00041095,120]
[400106778,1767122908953,-437.19997144,0.00041095,120]
[400106779,1767122908983,-500.0,0.00041095,120]
[400106780,1767122909011,-500.0,0.00041095,120]
[400106781,1767122909040,-500.0,0.00041095,120]
[400106782,1767122909066,-273.32494671,0.00041095,120]
[400106783,1767122909093,-200.0,0.00041095,120]
[400106784,1767122909121,-464.05621709,0.00041095,120]
[400106785,1767122909153,-500.0,0.00041095,120]
[400106786,1767122909182,-627.15,0.00041095,120]
[400106787,1767122909211,-627.15,0.00041095,120]
[400106788,1767122909239,-627.15,0.00041095,120]
[400106789,1767122909268,-627.15,0.00041095,120]
[400106790,1767122909296,-627.15,0.00041095,120]
[400106791,1767122909325,-500.0,0.00041095,120]
[400106792,1767122909353,-627.15,0.00041095,120]
[400106793,1767122909382,-627.15,0.00041095,120]
[400106794,1767122909410,-627.15,0.00041095,120]
[400106795,1767122909438,-627.15,0.00041095,120]
[400106796,1767122909468,-627.15,0.00041095,120]
[400106797,1767122909496,-627.15,0.00041095,120]
[400106798,1767122909525,-627.15,0.00041095,120]
[400106799,1767122909552,-627.15,0.00041095,120]
[400106800,1767122909582,-627.15,0.00041095,120]
[400106801,1767122909611,-200.0,0.00041095,120]
[400106802,1767122909641,-344.96543506,0.00041095,120]
[400106803,1767122909671,-627.15,0.00041095,120]
[400106804,1767122909699,-627.15,0.00041095,120]
[400106805,1767122909728,-500.0,0.00041095,120]
[400106806,1767122909755,-627.15,0.00041095,120]
[400106807,1767122909783,-500.0,0.00041095,120]
[400106808,1767122909813,-627.15,0.00041095,120]
[400106809,1767122909844,-161.41,0.00041095,120]
[400106810,1767122909875,-627.15,0.00041095,120]
[400106811,1767122909904,-627.15,0.00041095,120]
[400106812,1767122909933,-627.15,0.00041095,120]
[400106813,1767122909963,-627.15,0.00041095,120]
[400106814,1767122909991,-627.15,0.00041095,120]
[400106815,1767122910020,-627.17457162,0.00041095,120]
[400106816,1767122910050,-500.0,0.00041095,120]
[400106817,1767122910078,-500.0,0.00041095,120]
[400106818,1767122910105,-256.32,0.00041096,120]
[400106819,1767122910132,-224.88,0.00041096,120]
[400106820,1767122910159,-1015.23294238,0.000411,120]
[400106821,1767122910187,-200.0,0.000411,120]
[400106822,1767122910215,-153.0,0.000412,120]
[400106823,1767122910245,-1027.86,0.000412,30]
[400106824,1767122910273,-1279.08,0.00041222,75]
[400106825,1767122910302,-1351.3,0.0004124,30]
[400106826,1767122910331,-900.0,0.00041285,60]
[400106827,1767122910360,-172.02491,0.00041288,30]
[400106828,1767122910389,-152.0,0.000413,120]
[400106829,1767122910417,-285.65075281,0.0004142,120]
[400106830,1767122910446,-172.02491,0.00041488,30]
[400106831,1767122910475,-183.58948,0.000416,30]
[400106832,1767122910504,-172.02491,0.00041688,30]
[400106833,1767122910534,-492.0,0.00041693,30]
[400106834,1767122910562,-367.76,0.000417,30]
[400106835,1767122910592,-274.42,0.000417,30]
[400106836,1767122910621,-593.73,0.000418,120]
[400106837,1767122910650,-395.82,0.000418,120]
[400106838,1767122910677,-347.3,0.000418,120]
[400106839,1767122910706,-153.0,0.000418,120]
[400106840,1767122910734,-1008.83,0.000418,120]
[400106841,1767122910762,-230.80263405,0.000418,120]
[400106842,1767122910790,-638.2064344,0.000418,120]
[400106843,1767122910819,-900.0,0.00041833,60]
[400106844,1767122911056,-347.47384299,0.0004188,120]
[400106845,1767122911086,-172.02491,0.00041888,30]
[400106846,1767122911115,-152.0,0.000419,120]
[400106847,1767122911144,-1351.3,0.00041927,30]
[400106848,1767122911173,-157.097086,0.00042,120]
[400106849,1767122911200,-185.14306652,0.00042,120]
[400106850,1767122911228,-999.0,0.00042,120]
[400106851,1767122911257,-250.0,0.00042,120]
[400106852,1767122911285,-200.0,0.00042,120]
[400106853,1767122911314,-635.0,0.00042,120]
[400106854,1767122911346,-150.0,0.00042,120]
[400106855,1767122911375,-253.0,0.00042,37]
[400106856,1767122911405,-492.0,0.00042122,30]
[400106857,1767122911437,-153.0,0.000423,120]
[400106858,1767122911467,-663.15856803,0.00042336,60]
[400106859,1767122911496,-900.0,0.00042381,60]
[400106860,1767122911526,-160.71501564,0.00042411,30]
[400106861,1767122911555,-5000.0,0.00042449,30]
[400106862,1767122911584,-392.62,0.00042468,120]
[400106863,1767122911613,-763.14,0.000425,120]
[400106864,1767122911641,-406.76901743,0.000425,120]
[400106865,1767122911669,-47122.03684361,0.00042552,120]
[400106866,1767122911697,-492.0,0.00042552,30]
[400106867,1767122911725,-152.0,0.000426,120]
[400106868,1767122911754,-200.0,0.000426,120]
[400106869,1767122911784,-160.71501564,0.00042603,30]
[400106870,1767122911812,-1351.3,0.00042615,30]
[400106871,1767122911841,-246.91,0.00042679,120]
[400106872,1767122911868,-687.71,0.00042679,120]
[400106873,1767122911897,-243.38,0.00042679,120]
[400106874,1767122911926,-726.00479998,0.000427,120]
[400106875,1767122911956,-160.71501564,0.00042795,30]
[400106876,1767122911984,-535.4,0.000428,120]
[400106878,1767122912011,-354.98881333,0.000428,120]
[400106879,1767122912039,-274.2515615,0.000428,120]
[400106880,1767122912068,-172.22314797,0.00042829,30]
[400106881,1767122912097,-9105.12477189,0.000429,120]
[400106882,1767122912125,-153.0,0.000429,120]
[400106883,1767122912153,-955.974817,0.000429,30]
[400106884,1767122912180,-900.0,0.00042929,60]
[400106885,1767122912208,-155.85,0.00042929,60]
[400106886,1767122912247,-206.0,0.0004295,30]
[400106887,1767122912276,-492.0,0.00042982,30]
[400106888,1767122912305,-160.71501564,0.00042986,30]
[400106889,1767122912332,-153.0,0.00043,120]
[400106890,1767122912360,-2359.42702643,0.00043,120]
[400106891,1767122912388,-439.7414601,0.00043,120]
[400106892,1767122912417,-324.93288185,0.00043,120]
[400106893,1767122912445,-2479.33228558,0.00043,120]
[400106894,1767122912474,-999.0,0.00043,120]
[400106895,1767122912503,-150.0,0.00043,120]
[400106896,1767122912532,-253.0,0.00043,41]
[400106897,1767122912561,-204.47,0.00043014,120]
[400106898,1767122912592,-160.71501564,0.00043178,30]
[400106899,1767122912621,-152.0,0.000432,120]
[400106900,1767122912650,-1351.3,0.00043302,120]
[400106901,1767122912679,-160.71501564,0.00043342,30]
[400106902,1767122912707,-492.0,0.00043412,30]
[400106903,1767122912736,-182.81045316,0.0004344,120]
[400106904,1767122912764,-900.0,0.00043477,60]
[400106905,1767122912793,-153.0,0.000435,120]
[400106906,1767122912821,-160.71501564,0.00043534,30]
[400106907,1767122912852,-1444.0,0.00043562,120]
[400106908,1767122912885,-582.6964296,0.000437,120]
[400106909,1767122912917,-160.71501564,0.00043726,30]
[400106910,1767122912948,-152.0,0.000438,120]
[400106911,1767122912983,-501.26173467,0.000438,30]
[400106912,1767122913015,-759.70614704,0.000438,30]
[400106913,1767122913045,-1150.0,0.00043836,98]
[400106914,1767122913078,-953.0,0.00043836,64]
[400106915,1767122913108,-1238.0,0.00043836,111]
[400106916,1767122913140,-819.0,0.00043836,53]
[400106917,1767122913171,-1142.5,0.00043836,92]
[400106918,1767122913202,-945.0,0.00043836,78]
[400106919,1767122913234,-960.5,0.00043836,50]
[400106920,1767122913264,-953.0,0.00043836,73]
[400106921,1767122913296,-835.5,0.00043836,109]
[400106922,1767122913329,-768.0,0.00043836,78]
[400106923,1767122913361,-997.5,0.00043836,102]
[400106924,1767122913395,-1232.0,0.00043836,80]
[400106925,1767122913428,-798.0,0.00043836,50]
[400106926,1767122913460,-874.07804722,0.00043836,63]
[400106927,1767122913490,-862.0,0.00043836,102]
[400106928,1767122913521,-808.0,0.00043836,99]
[400106929,1767122913553,-1063.21560945,0.00043836,84]
[400106930,1767122913584,-492.0,0.00043842,30]
[400106931,1767122913616,-160.71501564,0.00043918,30]
[400106932,1767122913647,-2883.253445,0.00043987,120]
[400106933,1767122913678,-1351.3,0.00043989,120]
[400106934,1767122913708,-316.94397202,0.00044,120]
[400106935,1767122913737,-622.03463783,0.00044,120]
[400106936,1767122913765,-2532.82131726,0.00044,120]
[400106937,1767122913795,-999.0,0.00044,120]
[400106938,1767122913825,-200.0,0.00044,120]
[400106939,1767122913855,-150.0,0.00044,120]
[400106940,1767122913888,-1027.86,0.00044,30]
[400106941,1767122913920,-417.617906,0.00044,57]
[400106942,1767122913953,-253.0,0.00044,45]
[400106943,1767122913984,-153.0,0.000441,120]
[400106944,1767122914015,-200.0,0.000441,120]
[400106945,1767122914047,-160.71501564,0.0004411,30]
[400106946,1767122914077,-158.87142828,0.0004425,120]
[400106947,1767122914112,-492.0,0.00044271,30]
[400106948,1767122914144,-173.79583557,0.00044297,30]
[400106949,1767122914174,-160.71501564,0.00044301,30]
[400106950,1767122914204,-152.0,0.000445,120]
[400106951,1767122914234,-444.85207918,0.000445,120]
[400106952,1767122914264,-1099.0,0.00044519,30]
[400106953,1767122914293,-900.0,0.00044573,60]
[400106954,1767122914324,-1351.3,0.00044676,120]
[400106955,1767122914354,-153.0,0.000447,120]
[400106956,1767122914385,-211.32,0.00044701,120]
[400106957,1767122914415,-160.0863182,0.00044716,120]
[400106958,1767122914446,-2000.0,0.00044748,31]
[400106959,1767122914475,-2219.04125674,0.000448,120]
[400106960,1767122914506,-2224.64142445,0.000448,120]
[400106961,1767122914537,-254.4647272,0.0004489,120]
[400106962,1767122914567,-206.0,0.0004496,30]
[400106963,1767122914598,-906.12908183,0.00045,120]
[400106964,1767122914627,-314.626761,0.00045,30]
[400106965,1767122914655,-1129.32651,0.00045,32]
[400106966,1767122914685,-163.8227439,0.00045,120]
[400106967,1767122914717,-150.0,0.00045,120]
[400106968,1767122914748,-328.7491163,0.00045,60]
[400106969,1767122914779,-999.0,0.00045,120]
[400106970,1767122914810,-200.0,0.00045,120]
[400106971,1767122914839,-226.91135273,0.00045,120]
[400106972,1767122914874,-500.0,0.00045,120]
[400106973,1767122914906,-863.36804177,0.00045,120]
[400106974,1767122914938,-4509.67911578,0.00045,120]
[400106975,1767122914973,-2500.0,0.00045,30]
[400106976,1767122915005,-253.0,0.00045,48]
[400106977,1767122915038,-600.0,0.00045,120]
[400106978,1767122915071,-316.2,0.00045,120]
[400106979,1767122915104,-202.37715488,0.00045,30]
[400106980,1767122915137,-202.37715488,0.00045051,30]
[400106981,1767122915168,-152.0,0.000451,120]
[400106982,1767122915200,-202.37715488,0.00045101,30]
[400106983,1767122915234,-202.37715488,0.00045152,30]
[400106984,1767122915265,-202.37715488,0.00045202,30]
[400106985,1767122915298,-202.37715488,0.00045253,30]
[400106986,1767122915330,-153.0,0.000453,120]
[400106987,1767122915367,-202.37715488,0.00045303,30]
[400106988,1767122915401,-202.37715488,0.00045354,30]
[400106989,1767122915433,-1351.3,0.00045363,120]
[400106990,1767122915466,-202.37715488,0.00045404,30]
[400106991,1767122915497,-202.37715488,0.00045455,30]
[400106992,1767122915531,-202.37715488,0.00045505,30]
[400106993,1767122915563,-202.37715488,0.00045556,30]
[400106994,1767122915595,-200.0,0.000456,120]
[400106995,1767122915627,-202.37715488,0.00045606,30]
[400106996,1767122915663,-202.37715488,0.00045657,30]
[400106997,1767122915699,-900.0,0.00045669,60]
[400106998,1767122915731,-152.0,0.000457,120]
[400106999,1767122915763,-202.19795341,0.000457,120]
[400107000,1767122915795,-202.37715488,0.00045707,30]
[400107001,1767122915826,-202.37715488,0.00045758,30]
[400107002,1767122915857,-202.37715488,0.00045808,30]
[400107003,1767122915891,-600.0,0.00045856,120]
[400107004,1767122915924,-202.37715488,0.00045859,30]
[400107005,1767122915955,-153.0,0.000459,120]
[400107006,1767122916373,-1000.0,0.000459,120]
[400107007,1767122916406,-202.37715488,0.00045909,30]
[400107008,1767122916438,-202.37715488,0.0004596,30]
[400107009,1767122916470,-799.9555027,0.00046,120]
[400107010,1767122916501,-182.30338048,0.00046,120]
[400107011,1767122916531,-290.26236637,0.00046,120]
[400107012,1767122916562,-1000.0,0.00046,30]
[400107013,1767122916594,-204.83559935,0.00046,30]
[400107014,1767122916625,-1201.52597258,0.00046,30]
[400107015,1767122916656,-965.37438827,0.00046,120]
[400107016,1767122916688,-999.0,0.00046,120]
[400107017,1767122916718,-200.0,0.00046,120]
[400107018,1767122916749,-50923.98468923,0.00046,90]
[400107019,1767122916787,-1361.45179117,0.00046,120]
[400107020,1767122916825,-668.82495,0.00046,120]
[400107021,1767122916856,-500.0,0.00046,120]
[400107022,1767122916887,-253.0,0.00046,52]
[400107023,1767122916919,-202.37715488,0.0004601,30]
[400107024,1767122916949,-1351.3,0.0004605,120]
[400107025,1767122916980,-202.37715488,0.00046061,30]
[400107026,1767122917009,-202.37715488,0.00046111,30]
[400107027,1767122917039,-202.37715488,0.00046162,30]
[400107028,1767122917068,-202.37715488,0.00046212,30]
[400107029,1767122917097,-202.37715488,0.00046263,30]
[400107030,1767122917126,-202.37715488,0.00046313,30]
[400107031,1767122917155,-202.37715488,0.00046364,30]
[400107032,1767122917184,-152.0,0.000464,120]
[400107033,1767122917213,-202.37715488,0.00046414,30]
[400107034,1767122917243,-202.37715488,0.00046465,30]
[400107035,1767122917272,-153.0,0.000465,120]
[400107036,1767122917303,-202.37715488,0.00046515,30]
[400107037,1767122917336,-202.37715488,0.00046566,30]
[400107038,1767122917368,-202.37715488,0.00046616,30]
[400107039,1767122917401,-202.37715488,0.00046667,30]
[400107040,1767122917433,-202.37715488,0.00046717,30]
[400107041,1767122917465,-1351.3,0.00046737,120]
[400107042,1767122917494,-900.0,0.00046765,60]
[400107043,1767122917523,-202.37715488,0.00046768,30]
[400107044,1767122917552,-978.53584955,0.000468,120]
[400107045,1767122917584,-202.37715488,0.00046818,30]
[400107046,1767122917614,-1099.0,0.00046862,30]
[400107047,1767122917645,-202.37715488,0.00046869,30]
[400107048,1767122917675,-1721.30419258,0.000469,120]
[400107049,1767122917706,-202.37715488,0.00046919,30]
[400107050,1767122917736,-202.37715488,0.0004697,30]
[400107051,1767122917765,-206.0,0.0004698,30]
[400107052,1767122917794,-153.0,0.00047,120]
[400107053,1767122917823,-152.0,0.00047,120]
[400107054,1767122917851,-616.81170522,0.00047,30]
[400107055,1767122917902,-280.15538199,0.00047,120]
[400107056,1767122917934,-1026.06916414,0.00047,120]
[400107057,1767122917964,-999.0,0.00047,120]
[400107058,1767122917993,-500.0,0.00047,120]
[400107059,1767122918024,-253.0,0.00047,56]
[400107060,1767122918056,-202.37715488,0.0004702,30]
[400107061,1767122918087,-202.37715488,0.00047071,30]
[400107062,1767122918116,-150.0,0.00047094,30]
[400107063,1767122918145,-471.47079945,0.00047094,30]
[400107064,1767122918175,-150.0,0.00047094,30]
[400107065,1767122918205,-449.89365898,0.00047094,30]
[400107066,1767122918236,-150.0,0.00047094,30]
[400107067,1767122918267,-3146.64506097,0.00047094,30]
[400107068,1767122918298,-248.54953854,0.00047094,30]
[400107069,1767122918330,-2000.0,0.00047115,120]
[400107070,1767122918367,-202.37715488,0.00047121,30]
[400107071,1767122918400,-202.37715488,0.00047172,30]
[400107072,1767122918431,-446.67485934,0.00047203,120]
[400107073,1767122918465,-202.37715488,0.00047222,30]
[400107074,1767122918495,-202.37715488,0.00047273,30]
[400107075,1767122918526,-202.37715488,0.00047323,30]
[400107076,1767122918556,-202.37715488,0.00047374,30]
[400107077,1767122918589,-1351.3,0.00047424,120]
[400107078,1767122918622,-202.37715488,0.00047424,30]
[400107079,1767122918652,-202.37715488,0.00047475,30]
[400107080,1767122918680,-796.16281441,0.000475,120]
[400107081,1767122918709,-281.33648699,0.000475,120]
[400107082,1767122918738,-202.37715488,0.00047525,30]
[400107083,1767122918767,-202.37715488,0.00047576,30]
[400107084,1767122918798,-153.0,0.000476,120]
[400107085,1767122918828,-202.37715488,0.00047626,30]
[400107086,1767122918868,-202.37715488,0.00047677,30]
[400107087,1767122918901,-152.0,0.000477,120]
[400107088,1767122918932,-202.37715488,0.00047727,30]
[400107089,1767122918964,-202.37715488,0.00047778,30]
[400107090,1767122918995,-202.37715488,0.00047828,30]
[400107091,1767122919027,-900.0,0.00047861,60]
[400107092,1767122919058,-202.37715488,0.00047879,30]
[400107093,1767122919088,-202.37715488,0.00047929,30]
[400107094,1767122919118,-202.37715488,0.0004798,30]
[400107095,1767122919148,-1000.0,0.00047999,120]
[400107096,1767122919179,-320.0,0.00048,120]
[400107097,1767122919209,-799.9555027,0.00048,120]
[400107098,1767122919248,-1000.0,0.00048,120]
[400107099,1767122919449,-453.45490339,0.00048,120]
[400107100,1767122919480,-889.92439303,0.00048,120]
[400107101,1767122919511,-589.19749603,0.00048,120]
[400107102,1767122919539,-195.83757143,0.00048,120]
[400107103,1767122919569,-191.3578133,0.00048,120]
[400107104,1767122919604,-642.77207288,0.00048,120]
[400107105,1767122919634,-999.0,0.00048,120]
[400107106,1767122919666,-200.0,0.00048,120]
[400107107,1767122919696,-964.76454712,0.00048,120]
[400107108,1767122919726,-500.0,0.00048,120]
[400107109,1767122919756,-200.0,0.00048,120]
[400107110,1767122919784,-253.0,0.00048,59]
[400107111,1767122919815,-202.37715488,0.0004803,30]
[400107112,1767122919846,-202.37715488,0.00048081,30]
[400107113,1767122919876,-267067.36394899,0.000481,120]
[400107114,1767122919907,-202.37715488,0.00048131,30]
[400107115,1767122919938,-202.37715488,0.00048182,30]
[400107116,1767122919970,-153.0,0.000482,120]
[400107117,1767122919999,-202.37715488,0.00048232,30]
[400107118,1767122920029,-1339.50310627,0.0004825,120]
[400107119,1767122920058,-202.37715488,0.00048283,30]
[400107120,1767122920093,-152.0,0.000483,120]
[400107121,1767122920124,-202.37715488,0.00048333,30]
[400107122,1767122920154,-202.37715488,0.00048384,30]
[400107123,1767122920183,-202.37715488,0.00048434,30]
[400107124,1767122920214,-202.37715488,0.00048485,30]
[400107125,1767122920243,-275.19411615,0.000485,120]
[400107126,1767122920271,-561.09576492,0.00048525,120]
[400107127,1767122920301,-202.37715488,0.00048535,30]
[400107128,1767122920330,-202.37715488,0.00048586,30]
[400107129,1767122920360,-202.37715488,0.00048636,30]
[400107130,1767122920391,-202.37715488,0.00048687,30]
[400107131,1767122920421,-202.37715488,0.00048737,30]
[400107132,1767122920451,-202.37715488,0.00048788,30]
[400107133,1767122920482,-153.0,0.000488,120]